fUST/lending_fUST_20250326
["ID","MTS","AMOUNT","RATE_DAILY","PERIOD"]
[356662444,1742928651780,-1599.34,0.00013165,2]
[356662445,1742928651789,-1406.29,0.00013165,2]
[356662446,1742928651799,-500.0,0.00013167,2]
[356662447,1742928651808,-500.0,0.00013167,2]
[356662448,1742928651817,-500.0,0.00013167,2]
[356662449,1742928651826,-500.0,0.00013167,2]
[356662450,1742928651835,-684.07,0.00013167,2]
[356662451,1742928651844,-500.0,0.00013167,2]
[356662452,1742928651853,-500.0,0.00013167,2]
[356662453,1742928651862,-500.0,0.00013167,2]
[356662454,1742928651871,-681.24,0.00013167,2]
[356662455,1742928651880,-641.95,0.00013167,2]
[356662456,1742928651889,-500.0,0.00013167,2]
[356662457,1742928651898,-631.67,0.00013167,2]
[356662458,1742928651908,-657.64,0.00013167,2]
[356662459,1742928651916,-432.16,0.00013167,2]
[356662460,1742928651926,-1068.41,0.00013167,2]
[356662461,1742928651935,-628.23,0.00013167,2]
[356662462,1742928651943,-657.1,0.00013167,2]
[356662463,1742928651953,-500.0,0.00013167,2]
[356662464,1742928651962,-500.0,0.00013167,2]
[356662465,1742928651971,-472.69689636,0.00013167,2]
[356662466,1742928651980,-500.0,0.00013167,2]
[356662467,1742928651990,-500.0,0.00013167,2]
[356662468,1742928651999,-500.0,0.00013167,2]
[356662469,1742928652009,-595.75,0.00013167,2]
[356662470,1742928652018,-783.41,0.00013167,2]
[356662471,1742928652028,-1213.87,0.00013167,2]
[356662472,1742928652037,-500.0,0.00013167,2]
[356662473,1742928652046,-1046.19,0.00013167,2]
[356662474,1742928652056,-500.0,0.00013167,2]
[356662475,1742928652066,-500.0,0.00013167,2]
[356662476,1742928652075,-500.0,0.00013167,2]
[356662477,1742928652085,-2981.15,0.00013167,2]
[356662478,1742928652094,-500.0,0.00013167,2]
[356662479,1742928652103,-500.0,0.00013167,2]
[356662480,1742928652113,-385.51,0.00013167,2]
[356662481,1742928652122,-500.0,0.00013167,2]
[356662482,1742928652132,-500.0,0.00013167,2]
[356662483,1742928652142,-500.0,0.00013167,2]
[356662484,1742928652151,-753.15,0.00013167,2]
[356662485,1742928652160,-500.0,0.00013167,2]
[356662486,1742928652169,-532.99,0.00013167,2]
[356662487,1742928652180,-150.23,0.00013176,2]
[356662488,1742928652189,-505.068269,0.00013176,2]
[356662489,1742928652199,-420.0,0.00013246,2]
[356662490,1742928652208,-200.74553452,0.00013313,2]
[356662491,1742928652217,-500.0,0.00013438,2]
[356662492,1742928652227,-610.3,0.00013438,2]
[356662493,1742928652236,-857.63,0.00013438,2]
[356662494,1742928652245,-2533.45,0.00013438,2]
[356662495,1742928652253,-3375.25,0.00013438,2]
[356662496,1742928652262,-938.09,0.00013438,2]
[356662497,1742928652270,-500.0,0.00013438,2]
[356662498,1742928652279,-1122.77,0.00013438,2]
[356662499,1742928652288,-500.0,0.00013438,2]
[356662500,1742928652297,-500.0,0.00013438,2]
[356662501,1742928652306,-500.0,0.00013438,2]
[356662502,1742928652315,-852.38,0.00013438,2]
[356662503,1742928652324,-766.17,0.00013438,2]
[356662504,1742928652333,-500.0,0.00013438,2]
[356662505,1742928652342,-500.0,0.00013438,2]
[356662506,1742928652351,-7509.7,0.00013438,2]
[356662507,1742928652360,-6805.87,0.00013438,2]
[356662508,1742928652369,-500.0,0.00013438,2]
[356662509,1742928652379,-500.0,0.00013438,2]
[356662510,1742928652388,-2167.2,0.00013438,2]
[356662511,1742928652397,-2141.39,0.00013438,2]
[356662512,1742928652406,-548.0,0.00013438,2]
[356662513,1742928652415,-2017.42,0.00013438,2]
[356662514,1742928652424,-613.47,0.00013438,2]
[356662515,1742928652434,-1848.98,0.00013438,2]
[356662516,1742928652443,-670.26,0.00013438,2]
[356662517,1742928652452,-500.17,0.00013438,2]
[356662518,1742928652461,-500.0,0.00013438,2]
[356662519,1742928652470,-922.95,0.00013438,2]
[356662520,1742928652479,-1026.84,0.00013438,2]
[356662521,1742928652489,-1817.23,0.00013438,2]
[356662522,1742928652497,-5962.33,0.00013438,2]
[356662523,1742928652506,-500.0,0.00013438,2]
[356662524,1742928652514,-500.0,0.00013438,2]
[356662525,1742928652523,-857.84,0.00013438,2]
[356662526,1742928652532,-4281.75,0.00013438,2]
[356662527,1742928652540,-829.05,0.00013438,2]
[356662528,1742928652550,-930.7,0.00013438,2]
[356662529,1742928652558,-500.0,0.00013438,2]
[356662530,1742928652566,-500.0,0.00013438,2]
[356662531,1742928652575,-1361.81,0.00013438,2]
[356662532,1742928652584,-1218.47,0.00013438,2]
[356662533,1742928652594,-500.0,0.00013438,2]
[356662534,1742928652602,-575.72,0.00013439,2]
[356662535,1742928652609,-174.09927373,0.00013439,2]
[356662536,1742928652617,-500.0,0.00013439,2]
[356662537,1742928652625,-620.8,0.00013439,2]
[356662538,1742928652632,-500.0,0.00013439,2]
[356662539,1742928652640,-500.0,0.00013439,2]
[356662540,1742928652647,-500.0,0.00013439,2]
[356662541,1742928652653,-500.0,0.00013439,2]
[356662542,1742928652659,-925.62,0.00013439,2]
[356662543,1742928652666,-532.89,0.00013439,2]
[356662544,1742928652674,-500.0,0.00013439,2]
[356662545,1742928652683,-500.0,0.00013439,2]
[356662546,1742928652694,-500.0,0.00013439,2]
[356662547,1742928652700,-500.0,0.00013439,2]
[356662548,1742928652708,-500.0,0.00013439,2]
[356662549,1742928652715,-500.0,0.00013439,2]
[356662550,1742928652722,-500.0,0.00013439,2]
[356662551,1742928652730,-547.01,0.00013439,2]
[356662552,1742928652736,-670.2,0.00013439,2]
[356662553,1742928652743,-500.0,0.00013439,2]
[356662554,1742928652750,-500.0,0.00013439,2]
[356662555,1742928652756,-500.0,0.00013439,2]
[356662556,1742928652763,-7595.93,0.00013439,2]
[356662557,1742928652772,-895.16,0.00013439,2]
[356662558,1742928652779,-500.0,0.00013439,2]
[356662559,1742928652785,-1463.48,0.00013439,2]
[356662560,1742928652792,-1653.64,0.00013439,2]
[356662561,1742928652799,-500.0,0.00013439,2]
[356662562,1742928652805,-500.0,0.00013439,2]
[356662563,1742928652811,-2867.38,0.00013439,2]
[356662564,1742928652818,-3043.0,0.00013439,2]
[356662565,1742928652826,-695.29,0.00013439,2]
[356662566,1742928652835,-670.87,0.00013439,2]
[356662567,1742928652844,-4315.87,0.00013439,2]
[356662568,1742928652854,-500.0,0.00013439,2]
[356662569,1742928652864,-500.0,0.00013439,2]
[356662570,1742928652873,-89592.71,0.00013439,2]
[356662571,1742928652883,-954.85,0.00013439,2]
[356662572,1742928652892,-3018.93,0.00013439,2]
[356662573,1742928652901,-500.0,0.00013439,2]
[356662574,1742928652911,-1278.83,0.00013439,2]
[356662575,1742928652920,-1124.11,0.00013439,2]
[356662576,1742928652930,-500.0,0.00013439,2]
[356662577,1742928652940,-500.0,0.00013439,2]
[356662578,1742928652949,-1317.32,0.00013439,2]
[356662579,1742928653061,-4725.97,0.00013439,2]
[356662580,1742928653072,-500.0,0.00013439,2]
[356662581,1742928653082,-1433.14,0.00013439,2]
[356662582,1742928653091,-1599.34,0.00013439,2]
[356662583,1742928653101,-1406.29,0.00013439,2]
[356662584,1742928653110,-500.0,0.00013441,2]
[356662585,1742928653120,-500.0,0.00013441,2]
[356662586,1742928653129,-500.0,0.00013441,2]
[356662587,1742928653139,-500.0,0.00013441,2]
[356662588,1742928653149,-684.07,0.00013441,2]
[356662589,1742928653159,-500.0,0.00013441,2]
[356662590,1742928653168,-500.0,0.00013441,2]
[356662591,1742928653177,-500.0,0.00013441,2]
[356662592,1742928653187,-681.24,0.00013441,2]
[356662593,1742928653197,-500.0,0.00013441,2]
[356662594,1742928653207,-631.67,0.00013441,2]
[356662595,1742928653216,-657.64,0.00013441,2]
[356662596,1742928653225,-1068.41,0.00013441,2]
[356662597,1742928653235,-628.23,0.00013441,2]
[356662598,1742928653245,-657.1,0.00013441,2]
[356662599,1742928653254,-500.0,0.00013441,2]
[356662600,1742928653263,-500.0,0.00013441,2]
[356662601,1742928653273,-500.0,0.00013441,2]
[356662602,1742928653283,-500.0,0.00013441,2]
[356662603,1742928653292,-500.0,0.00013441,2]
[356662604,1742928653301,-595.75,0.00013441,2]
[356662605,1742928653311,-783.41,0.00013441,2]
[356662606,1742928653321,-1213.87,0.00013441,2]
[356662607,1742928653330,-500.0,0.00013441,2]
[356662608,1742928653340,-1046.19,0.00013441,2]
[356662609,1742928653350,-500.0,0.00013441,2]
[356662610,1742928653359,-500.0,0.00013441,2]
[356662611,1742928653369,-500.0,0.00013441,2]
[356662612,1742928653379,-2981.15,0.00013441,2]
[356662613,1742928653389,-500.0,0.00013441,2]
[356662614,1742928653398,-500.0,0.00013441,2]
[356662615,1742928653408,-500.0,0.00013441,2]
[356662616,1742928653417,-500.0,0.00013441,2]
[356662617,1742928653427,-500.0,0.00013441,2]
[356662618,1742928653436,-753.15,0.00013441,2]
[356662619,1742928653446,-500.0,0.00013441,2]
[356662620,1742928653455,-532.99,0.00013441,2]
[356662621,1742928653464,-300.0,0.000135,4]
[356662622,1742928653474,-2200.0,0.00013531,2]
[356662623,1742928653484,-583.558,0.00013531,2]
[356662624,1742928653493,-405.23,0.000136,2]
[356662625,1742928653503,-160.0,0.00013677,2]
[356662626,1742928653512,-1000.0,0.00013698,2]
[356662627,1742928653521,-1000.0,0.00013698,2]
[356662628,1742928653531,-1000.0,0.00013698,2]
[356662629,1742928653540,-1000.0,0.00013698,2]
[356662630,1742928653549,-1000.0,0.00013698,2]
[356662631,1742928653558,-1000.0,0.00013698,2]
[356662632,1742928653567,-1000.0,0.00013698,2]
[356662633,1742928653578,-1000.0,0.00013698,2]
[356662634,1742928653588,-1000.0,0.00013698,2]
[356662635,1742928653597,-1000.0,0.00013698,2]
[356662636,1742928653606,-1000.0,0.00013698,2]
[356662637,1742928653615,-1000.0,0.00013698,2]
[356662638,1742928653625,-1000.0,0.00013698,2]
[356662639,1742928653634,-1000.0,0.00013698,2]
[356662640,1742928653643,-1000.0,0.00013698,2]
[356662641,1742928653652,-1000.0,0.00013698,2]
[356662642,1742928653661,-796.78845137,0.00013698,2]
[356662643,1742928653670,-1043.89136267,0.00013698,2]
[356662644,1742928653680,-500.0,0.00013698,2]
[356662645,1742928653693,-500.0,0.00013698,2]
[356662646,1742928653709,-500.0,0.00013698,2]
[356662647,1742928653719,-500.0,0.00013698,2]
[356662648,1742928653728,-500.0,0.00013698,2]
[356662649,1742928653738,-500.0,0.00013698,2]
[356662650,1742928653747,-178.615968,0.00013699,2]
[356662651,1742928653756,-178.615968,0.00013699,2]
[356662652,1742928653765,-178.615968,0.00013699,2]
[356662653,1742928653774,-178.615968,0.00013699,2]
[356662654,1742928653784,-178.615968,0.00013699,2]
[356662655,1742928653793,-178.615968,0.00013699,2]
[356662656,1742928653802,-178.615968,0.00013699,2]
[356662657,1742928653812,-178.615968,0.00013699,2]
[356662658,1742928653821,-178.615968,0.00013699,2]
[356662659,1742928653830,-178.615968,0.00013699,2]
[356662660,1742928653840,-178.615968,0.00013699,2]
[356662661,1742928653849,-178.615968,0.00013699,2]
[356662662,1742928653858,-178.615968,0.00013699,2]
[356662663,1742928653868,-178.615968,0.00013699,2]
[356662664,1742928653877,-178.615968,0.00013699,2]
[356662665,1742928653886,-178.615968,0.00013699,2]
[356662666,1742928653895,-178.615968,0.00013699,2]
[356662667,1742928653908,-178.615968,0.00013699,2]
[356662668,1742928653921,-178.615968,0.00013699,2]
[356662669,1742928653931,-178.61597249,0.00013699,2]
[356662670,1742928653940,-1254.769398,0.00013699,2]
[356662671,1742928653950,-1000.0,0.00013699,3]
[356662672,1742928653959,-1000.0,0.00013699,3]
[356662673,1742928653968,-1000.0,0.00013699,3]
[356662674,1742928653977,-1000.0,0.00013699,3]
[356662675,1742928653987,-1000.0,0.00013699,3]
[356662676,1742928653996,-1000.0,0.00013699,3]
[356662677,1742928654006,-1000.0,0.00013699,3]
[356662678,1742928654015,-1000.0,0.00013699,3]
[356662679,1742928654024,-1000.0,0.00013699,3]
[356662680,1742928654034,-1000.0,0.00013699,3]
[356662681,1742928654043,-754.978278,0.00013699,3]
[356662682,1742928654052,-561.835258,0.00013699,2]
[356662683,1742928654061,-502.31227996,0.00013699,2]
[356662684,1742928654070,-300.61794206,0.00013699,2]
[356662685,1742928654079,-500.97273484,0.00013699,2]
[356662686,1742928654087,-500.0,0.00013699,2]
[356662687,1742928654097,-151.16361418,0.00013699,2]
[356662688,1742928654106,-500.0,0.00013699,2]
[356662689,1742928654116,-500.0,0.00013699,2]
[356662690,1742928654125,-502.68915637,0.00013699,2]
[356662691,1742928654134,-500.0,0.00013699,2]
[356662692,1742928654143,-500.0,0.00013699,2]
[356662693,1742928654152,-500.0,0.00013699,2]
[356662694,1742928654161,-500.0,0.00013699,2]
[356662695,1742928654171,-500.0,0.00013699,2]
[356662696,1742928654181,-160.24093508,0.00013699,2]
[356662697,1742928654190,-500.0,0.00013699,2]
[356662698,1742928654200,-500.0,0.00013699,2]
[356662699,1742928654209,-500.30632676,0.00013699,2]
[356662700,1742928654218,-500.0,0.00013699,2]
[356662701,1742928654227,-500.0,0.00013699,2]
[356662702,1742928654236,-500.0,0.00013699,2]
[356662703,1742928654245,-500.0,0.00013699,2]
[356662704,1742928654254,-500.0,0.00013699,2]
[356662705,1742928654263,-154.35167654,0.00013699,2]
[356662706,1742928654272,-500.0,0.00013699,2]
[356662707,1742928654281,-500.0,0.00013699,2]
[356662708,1742928654291,-501.53858319,0.00013699,2]
[356662709,1742928654300,-500.0,0.00013699,2]
[356662710,1742928654309,-600.86761354,0.00013699,2]
[356662711,1742928654318,-500.0,0.00013699,2]
[356662712,1742928654327,-500.0,0.00013699,2]
[356662713,1742928654336,-500.0,0.00013699,2]
[356662714,1742928654346,-500.0,0.00013699,2]
[356662715,1742928654355,-501.13828895,0.00013699,2]
[356662716,1742928654364,-542.71469197,0.00013699,2]
[356662717,1742928654373,-501.40998262,0.00013699,2]
[356662718,1742928654382,-500.0,0.00013699,2]
[356662719,1742928654391,-500.0,0.00013699,2]
[356662720,1742928654401,-500.0,0.00013699,2]
[356662721,1742928654410,-500.0,0.00013699,2]
[356662722,1742928654419,-501.15053843,0.00013699,2]
[356662723,1742928654428,-500.0,0.00013699,2]
[356662724,1742928654437,-500.0,0.00013699,2]
[356662725,1742928654446,-500.0,0.00013699,2]
[356662726,1742928654455,-501.51568016,0.00013699,2]
[356662727,1742928654465,-500.0,0.00013699,2]
[356662728,1742928654474,-500.25823174,0.00013699,2]
[356662729,1742928654483,-500.0,0.00013699,2]
[356662730,1742928654493,-500.0,0.00013699,2]
[356662731,1742928654502,-541.64725719,0.00013699,2]
[356662732,1742928654512,-269.88394727,0.00013699,2]
[356662733,1742928654521,-500.0,0.00013699,2]
[356662734,1742928654530,-500.0,0.00013699,2]
[356662735,1742928654539,-500.0,0.00013699,2]
[356662736,1742928654549,-501.2295147,0.00013699,2]
[356662737,1742928654558,-500.0,0.00013699,2]
[356662738,1742928654567,-500.0,0.00013699,2]
[356662739,1742928654577,-501.03818778,0.00013699,2]
[356662740,1742928654587,-550.49406795,0.00013699,2]
[356662741,1742928654596,-500.96717233,0.00013699,2]
[356662742,1742928654605,-4354.46311647,0.00013699,2]
[356662743,1742928654615,-500.0,0.00013699,2]
[356662744,1742928654624,-500.0,0.00013699,2]
[356662745,1742928654633,-4354.46311647,0.00013699,2]
[356662746,1742928654642,-500.0,0.00013699,2]
[356662747,1742928654651,-4354.46311647,0.00013699,2]
[356662748,1742928654661,-4354.46311647,0.00013699,2]
[356662749,1742928654671,-4354.46311647,0.00013699,2]
[356662750,1742928654681,-4354.46311647,0.00013699,2]
[356662751,1742928654693,-4354.46311647,0.00013699,2]
[356662752,1742928654702,-500.0,0.00013699,2]
[356662753,1742928654712,-4354.46311647,0.00013699,2]
[356662754,1742928654721,-500.0,0.00013699,2]
[356662755,1742928654732,-4354.46311647,0.00013699,2]
[356662756,1742928654741,-4354.46311647,0.00013699,2]
[356662757,1742928654750,-544.54296358,0.00013699,2]
[356662758,1742928654759,-4354.46311647,0.00013699,2]
[356662759,1742928654770,-500.0,0.00013699,2]
[356662760,1742928654780,-4354.46311647,0.00013699,2]
[356662761,1742928654789,-500.0,0.00013699,2]
[356662762,1742928654800,-4354.46311647,0.00013699,2]
[356662763,1742928654809,-4354.46311647,0.00013699,2]
[356662764,1742928654819,-500.0,0.00013699,2]
[356662765,1742928654827,-4354.46311647,0.00013699,2]
[356662766,1742928654837,-4354.46311647,0.00013699,2]
[356662767,1742928654846,-4354.46311647,0.00013699,2]
[356662768,1742928654856,-4354.46311647,0.00013699,2]
[356662769,1742928654865,-4354.46311647,0.00013699,2]
[356662770,1742928654875,-4354.46311647,0.00013699,2]
[356662771,1742928654884,-4354.46311647,0.00013699,2]
[356662772,1742928654894,-4354.46311647,0.00013699,2]
[356662773,1742928654903,-4354.46311647,0.00013699,2]
[356662774,1742928654912,-4354.46311647,0.00013699,2]
[356662775,1742928654921,-4354.46311647,0.00013699,2]
[356662776,1742928654930,-4354.46311647,0.00013699,2]
[356662777,1742928654939,-4354.46311647,0.00013699,2]
[356662778,1742928654948,-4354.46311647,0.00013699,2]
[356662779,1742928654958,-4354.46311647,0.00013699,2]
[356662780,1742928654967,-4354.46311647,0.00013699,2]
[356662781,1742928654976,-4354.46311647,0.00013699,2]
[356662782,1742928654985,-4354.46311647,0.00013699,2]
[356662783,1742928654994,-4354.46311647,0.00013699,2]
[356662784,1742928655003,-4354.46311647,0.00013699,2]
[356662785,1742928655013,-4354.46311647,0.00013699,2]
[356662786,1742928655022,-4354.46311647,0.00013699,2]
[356662787,1742928655120,-4354.46311647,0.00013699,2]
[356662788,1742928655140,-4354.46311647,0.00013699,2]
[356662789,1742928655150,-4354.46311647,0.00013699,2]
[356662790,1742928655160,-4354.46311647,0.00013699,2]
[356662791,1742928655170,-4354.46311647,0.00013699,2]
[356662792,1742928655180,-4354.46311647,0.00013699,2]
[356662793,1742928655189,-4354.46311647,0.00013699,2]
[356662794,1742928655199,-4354.46311647,0.00013699,2]
[356662795,1742928655209,-4354.46311647,0.00013699,2]
[356662796,1742928655218,-4354.46311647,0.00013699,2]
[356662797,1742928655227,-4354.46311647,0.00013699,2]
[356662798,1742928655236,-4354.46311647,0.00013699,2]
[356662799,1742928655245,-4354.46311647,0.00013699,2]
[356662800,1742928655255,-4354.46311647,0.00013699,2]
[356662801,1742928655264,-4354.46311647,0.00013699,2]
[356662802,1742928655273,-2344.73407786,0.00013699,2]
[356662803,1742928655415,-2009.72903861,0.00013699,2]
[356662804,1742928655426,-4354.46311647,0.00013699,2]
[356662805,1742928655435,-1754.20784492,0.00013699,2]
[356662806,1742928655447,-341.7088765,0.00013699,2]
[356662807,1742928655459,-2258.54639505,0.00013699,2]
[356662808,1742928655468,-4354.46311647,0.00013699,2]
[356662809,1742928655477,-18372.65295734,0.00013699,2]
[356662810,1742928655487,-9254.33753114,0.00013699,2]
[356662811,1742928655957,4000.0,0.00011968,2]
[356662812,1742928741499,500.0,0.00011968,2]
[356662813,1742928800285,1197611.65176633,0.00011,2]
[356662814,1742928807705,221339.46633062,0.00011,2]
[356662815,1742928807735,23419.10397073,0.00011,2]
[356662816,1742928858941,5028.9222302,0.00011477,2]
[356662817,1742929063801,172.863905,0.00010959,2]
[356662819,1742929367751,223.02351842,0.00011967,2]
[356662821,1742929697456,223.02351841,0.00011966,2]
[356662831,1742929832030,-151.0,0.00012059,2]
[356662832,1742929832040,-302.0,0.00012059,2]
[356662833,1742929832049,-300.0,0.00012064,2]
[356662834,1742929832061,-500.0,0.00012064,2]
[356662835,1742929832070,-500.0,0.00012064,2]
[356662836,1742929832079,-500.0,0.00012064,2]
[356662837,1742929832088,-500.0,0.00012064,2]
[356662838,1742929832097,-500.0,0.00012064,2]
[356662839,1742929832106,-292.70039753,0.00012064,2]
[356662840,1742929832115,-362.1898502,0.00012064,2]
[356662841,1742929832125,-443.7860765,0.00012065,2]
[356662842,1742929832135,-500.0,0.00012065,2]
[356662843,1742929832145,-721.19,0.00012065,2]
[356662844,1742929832154,-2531.44,0.00012065,2]
[356662845,1742929832164,-1900.09,0.00012065,2]
[356662846,1742929832173,-703.57,0.00012065,2]
[356662847,1742929832183,-842.07,0.00012065,2]
[356662848,1742929832192,-500.0,0.00012065,2]
[356662850,1742929832201,-500.0,0.00012065,2]
[356662852,1742929832210,-500.0,0.00012065,2]
[356662854,1742929832219,-574.63,0.00012065,2]
[356662856,1742929832229,-639.28,0.00012065,2]
[356662857,1742929832238,-5632.27,0.00012065,2]
[356662858,1742929832246,-500.0,0.00012065,2]
[356662859,1742929832255,-500.0,0.00012065,2]
[356662860,1742929832264,-1606.05,0.00012065,2]
[356662861,1742929832273,-500.0,0.00012065,2]
[356662862,1742929832283,-500.0,0.00012065,2]
[356662863,1742929832291,-1513.07,0.00012065,2]
[356662864,1742929832300,-5104.4,0.00012065,2]
[356662865,1742929832309,-1386.74,0.00012065,2]
[356662866,1742929832318,-500.0,0.00012065,2]
[356662867,1742929832327,-1625.4,0.00012065,2]
[356662868,1742929832335,-692.22,0.00012065,2]
[356662869,1742929832345,-4471.75,0.00012065,2]
[356662870,1742929832354,-1362.93,0.00012065,2]
[356662871,1742929832363,-500.0,0.00012065,2]
[356662872,1742929832372,-502.7,0.00012065,2]
[356662873,1742929832381,-500.0,0.00012065,2]
[356662874,1742929832390,-500.0,0.00012065,2]
[356662875,1742929832399,-698.03,0.00012065,2]
[356662876,1742929832408,-500.0,0.00012065,2]
[356662877,1742929832418,-1021.35,0.00012065,2]
[356662878,1742929832427,-770.13,0.00012065,2]
[356662879,1742929832436,-913.85,0.00012065,2]
[356662880,1742929832445,-500.0,0.00012065,2]
[356662881,1742929832454,-3211.32,0.00012065,2]
[356662882,1742929832464,-671.37,0.00012065,2]
[356662883,1742929832473,-5696.95,0.00012065,2]
[356662884,1742929832482,-500.0,0.00012066,2]
[356662885,1742929832491,-500.0,0.00012066,2]
[356662886,1742929832500,-500.0,0.00012066,2]
[356662887,1742929832509,-500.0,0.00012066,2]
[356662888,1742929832518,-500.0,0.00012066,2]
[356662889,1742929832527,-500.0,0.00012066,2]
[356662890,1742929832537,-500.0,0.00012066,2]
[356662891,1742929832546,-500.0,0.00012066,2]
[356662892,1742929832555,-500.0,0.00012066,2]
[356662893,1742929832564,-500.0,0.00012066,2]
[356662894,1742929832573,-500.0,0.00012066,2]
[356662895,1742929832582,-500.0,0.00012066,2]
[356662896,1742929832591,-500.0,0.00012066,2]
[356662897,1742929832601,-735.08,0.00012066,2]
[356662898,1742929832610,-500.0,0.00012066,2]
[356662899,1742929832619,-500.0,0.00012066,2]
[356662900,1742929832628,-500.0,0.00012066,2]
[356662901,1742929832639,-500.0,0.00012066,2]
[356662902,1742929832648,-500.0,0.00012066,2]
[356662903,1742929832658,-500.0,0.00012066,2]
[356662904,1742929832667,-500.0,0.00012066,2]
[356662905,1742929832677,-500.0,0.00012066,2]
[356662906,1742929832686,-500.0,0.00012066,2]
[356662907,1742929832837,-500.0,0.00012066,2]
[356662908,1742929832848,-500.0,0.00012066,2]
[356662909,1742929832857,-500.0,0.00012066,2]
[356662910,1742929832867,-255.87361393,0.00012066,2]
[356662911,1742929832876,-500.0,0.00012066,2]
[356662912,1742929832886,-500.0,0.00012066,2]
[356662913,1742929832895,-500.0,0.00012066,2]
[356662914,1742929832904,-500.0,0.00012066,2]
[356662915,1742929832914,-500.0,0.00012066,2]
[356662916,1742929832924,-500.0,0.00012066,2]
[356662917,1742929832933,-500.0,0.00012066,2]
[356662918,1742929832943,-500.0,0.00012066,2]
[356662919,1742929832952,-500.0,0.00012066,2]
[356662920,1742929832962,-500.0,0.00012066,2]
[356662921,1742929832971,-308.5781338,0.00012066,2]
[356662922,1742929832980,-500.0,0.00012066,2]
[356662923,1742929832990,-502.65,0.00012066,2]
[356662924,1742929832999,-500.0,0.00012066,2]
[356662925,1742929833008,-500.0,0.00012066,2]
[356662926,1742929833019,-500.0,0.00012066,2]
[356662927,1742929833029,-500.0,0.00012066,2]
[356662928,1742929833039,-500.0,0.00012066,2]
[356662929,1742929833049,-500.0,0.00012066,2]
[356662930,1742929833063,-500.0,0.00012066,2]
[356662931,1742929833073,-500.0,0.00012066,2]
[356662932,1742929833083,-500.0,0.00012066,2]
[356662933,1742929833093,-1240.23,0.00012066,2]
[356662934,1742929833104,-500.0,0.00012066,2]
[356662935,1742929833113,-500.0,0.00012066,2]
[356662936,1742929833123,-500.0,0.00012066,2]
[356662937,1742929833133,-1097.61,0.00012066,2]
[356662938,1742929833145,-500.0,0.00012066,2]
[356662939,1742929833155,-2282.25,0.00012066,2]
[356662940,1742929833164,-2150.54,0.00012066,2]
[356662941,1742929833173,-500.0,0.00012066,2]
[356662942,1742929833183,-503.15,0.00012066,2]
[356662943,1742929833192,-500.0,0.00012066,2]
[356662944,1742929833202,-500.0,0.00012066,2]
[356662945,1742929833211,-500.0,0.00012066,2]
[356662946,1742929833222,-716.14,0.00012066,2]
[356662947,1742929833232,-500.0,0.00012066,2]
[356662948,1742929833242,-500.0,0.00012066,2]
[356662949,1742929833252,-521.47,0.00012066,2]
[356662950,1742929833261,-249.49213618,0.00012066,2]
[356662951,1742929833271,-3236.9,0.00012066,2]
[356662952,1742929833280,-500.0,0.00012066,2]
[356662953,1742929833290,-500.0,0.00012066,2]
[356662954,1742929833299,-67268.54,0.00012066,2]
[356662955,1742929833309,-500.0,0.00012066,2]
[356662956,1742929833319,-575.56,0.00012066,2]
[356662957,1742929833328,-2264.2,0.00012066,2]
[356662958,1742929833338,-987.99,0.00012066,2]